[Event "*** Titled Tuesday Blitz"]
[Site "Chess.com"]
[Date "2018.01.02"]
[Round "7"]
[White "Muracle"]
[Black "attack2mateU"]
[Result "1-0"]
[WhiteElo "2512"]
[BlackElo "2602"]
[TimeControl "180+2"]
[EndTime "14:36:24 PST"]
[Termination "Muracle won by resignation"]

1. Nf3 {[%clk 0:03:01.9]} 1... c5 {[%clk 0:02:59.8]} 2. g3 {[%clk 0:03:02.7]}
2... d5 {[%clk 0:02:59.5]} 3. Bg2 {[%clk 0:03:03.3]} 3... Nf6 {[%clk 0:03:00.1]}
4. O-O {[%clk 0:03:04]} 4... e6 {[%clk 0:03:00.6]} 5. b3 {[%clk 0:03:01.5]} 5...
Be7 {[%clk 0:03:00.8]} 6. Bb2 {[%clk 0:03:02.9]} 6... O-O {[%clk 0:03:02.4]} 7.
d3 {[%clk 0:03:04.2]} 7... Nc6 {[%clk 0:03:02.4]} 8. Nbd2 {[%clk 0:03:05.2]}
8... d4 {[%clk 0:02:58.5]} 9. e4 {[%clk 0:03:01.6]} 9... dxe3 {[%clk 0:02:58.6]}
10. fxe3 {[%clk 0:03:03.5]} 10... Nd5 {[%clk 0:02:55.9]} 11. Qe2 {[%clk
0:03:03.3]} 11... Bf6 {[%clk 0:02:45.8]} 12. Bxf6 {[%clk 0:03:02.8]} 12... Qxf6
{[%clk 0:02:46.8]} 13. Ne4 {[%clk 0:02:40.4]} 13... Qe7 {[%clk 0:02:34.9]} 14.
Rae1 {[%clk 0:02:28.1]} 14... h6 {[%clk 0:02:18.2]} 15. Kh1 {[%clk 0:02:22.7]}
15... b6 {[%clk 0:02:17.8]} 16. c4 {[%clk 0:02:20.3]} 16... Nc7 {[%clk 0:02:18]}
17. d4 {[%clk 0:02:14.2]} 17... Bb7 {[%clk 0:02:13.6]} 18. Qf2 {[%clk
0:02:02.7]} 18... Nb4 {[%clk 0:02:08.4]} 19. Ne5 {[%clk 0:01:55.9]} 19... Qd8
{[%clk 0:01:06.4]} 20. dxc5 {[%clk 0:01:33.5]} 20... f6 {[%clk 0:01:03.2]} 21.
Rd1 {[%clk 0:01:29.1]} 21... Qe8 {[%clk 0:00:46.8]} 22. Nd6 {[%clk 0:01:18.6]}
22... fxe5 {[%clk 0:00:19]} 23. Qxf8+ {[%clk 0:00:19.3]} 23... Qxf8 {[%clk
0:00:20.9]} 24. Rxf8+ {[%clk 0:00:20.1]} 24... Rxf8 {[%clk 0:00:22.5]} 25. Nxb7
{[%clk 0:00:22]} 25... Nca6 {[%clk 0:00:22.6]} 26. c6 {[%clk 0:00:16.8]} 26...
Nc2 {[%clk 0:00:17.4]} 27. Bh3 {[%clk 0:00:17.8]} 27... Nxe3 {[%clk 0:00:15.4]}
28. Bxe6+ {[%clk 0:00:18.8]} 28... Kh7 {[%clk 0:00:17]} 29. Re1 {[%clk
0:00:19.7]} 29... Nc2 {[%clk 0:00:11]} 30. Rxe5 {[%clk 0:00:20.4]} 30... Nd4
{[%clk 0:00:12.6]} 31. h4 {[%clk 0:00:18.4]} 31... Nxc6 {[%clk 0:00:13]} 32. Re4
{[%clk 0:00:13.8]} 32... Rf2 {[%clk 0:00:12.6]} 33. Bd5 {[%clk 0:00:13.6]} 33...
Ncb4 {[%clk 0:00:12.9]} 34. Be6 {[%clk 0:00:10.9]} 34... Kg6 {[%clk 0:00:11.3]}
35. a3 {[%clk 0:00:10.3]} 35... Nd3 {[%clk 0:00:11.8]} 36. Nd6 {[%clk
0:00:06.5]} 36... Nac5 {[%clk 0:00:10.6]} 37. Re3 {[%clk 0:00:06.4]} 37... Rd2
{[%clk 0:00:08.2]} 38. Bf5+ {[%clk 0:00:06.9]} 38... Kf6 {[%clk 0:00:07.7]} 39.
Bxd3 {[%clk 0:00:08]} 39... Rxd3 {[%clk 0:00:08.4]} 40. Rxd3 {[%clk 0:00:06.6]}
40... Nxd3 {[%clk 0:00:10.3]} 41. Nc8 {[%clk 0:00:08.5]} 41... Nc1 {[%clk
0:00:04.5]} 42. Nxa7 {[%clk 0:00:09.7]} 42... Nxb3 {[%clk 0:00:05.6]} 43. Nc8
{[%clk 0:00:11.1]} 43... Kf5 {[%clk 0:00:04.5]} 44. Nxb6 {[%clk 0:00:12.3]}
44... Kg4 {[%clk 0:00:05.7]} 45. Kg2 {[%clk 0:00:13.4]} 45... g5 {[%clk
0:00:06.7]} 46. hxg5 {[%clk 0:00:14.3]} 46... hxg5 {[%clk 0:00:08.6]} 47. Nd7
{[%clk 0:00:15.5]} 47... Kf5 {[%clk 0:00:09.4]} 48. a4 {[%clk 0:00:15.7]} 48...
Ke6 {[%clk 0:00:10.4]} 49. Nb6 {[%clk 0:00:16.9]} 49... Kd6 {[%clk 0:00:11.4]}
50. Nd5 {[%clk 0:00:16.1]} 50... Nc5 {[%clk 0:00:08.6]} 51. a5 {[%clk
0:00:16.4]} 51... Ke5 {[%clk 0:00:04.4]} 52. Kf3 {[%clk 0:00:16.9]} 52... Kd4
{[%clk 0:00:05.4]} 53. Nb6 {[%clk 0:00:16.3]} 53... Ke5 {[%clk 0:00:06.2]} 54.
Kg4 {[%clk 0:00:17.2]} 54... Kf6 {[%clk 0:00:07.5]} 55. Nd5+ {[%clk 0:00:16.8]}
55... Kg6 {[%clk 0:00:07.8]} 56. Nc7 {[%clk 0:00:17.3]} 56... Nd7 {[%clk
0:00:04.5]} 57. a6 {[%clk 0:00:17.8]} 57... Ne5+ {[%clk 0:00:06.1]} 58. Kh3
{[%clk 0:00:16.3]} 58... Nxc4 {[%clk 0:00:03.5]} 59. Nd5 {[%clk 0:00:17.1]}
59... Ne5 {[%clk 0:00:02.8]} 60. a7 {[%clk 0:00:17.1]} 1-0

[Event "*** Titled Tuesday Blitz"]
[Site "Chess.com"]
[Date "2018.01.02"]
[Round "7"]
[White "DagurR"]
[Black "hypert"]
[Result "1-0"]
[WhiteElo "2326"]
[BlackElo "2299"]
[TimeControl "180+2"]
[EndTime "14:36:36 PST"]
[Termination "DagurR won by resignation"]

1. d4 {[%clk 0:03:01.9]} 1... d5 {[%clk 0:03:00.6]} 2. c4 {[%clk 0:03:03.2]}
2... c6 {[%clk 0:03:01.8]} 3. Nf3 {[%clk 0:03:04.7]} 3... Nf6 {[%clk 0:03:02.6]}
4. Nc3 {[%clk 0:03:06.4]} 4... dxc4 {[%clk 0:03:03.8]} 5. a4 {[%clk 0:03:07.6]}
5... Bf5 {[%clk 0:03:04.8]} 6. e3 {[%clk 0:03:09.1]} 6... e6 {[%clk 0:03:05.8]}
7. Bxc4 {[%clk 0:03:10.8]} 7... Bb4 {[%clk 0:03:06.4]} 8. O-O {[%clk 0:03:12.5]}
8... Nbd7 {[%clk 0:03:06.6]} 9. Nh4 {[%clk 0:03:14]} 9... Bg4 {[%clk 0:03:01.2]}
10. f3 {[%clk 0:03:13.2]} 10... Bh5 {[%clk 0:02:54.2]} 11. g4 {[%clk 0:03:07.8]}
11... Bg6 {[%clk 0:02:41.1]} 12. Ng2 {[%clk 0:03:04]} 12... Qa5 {[%clk
0:02:37.7]} 13. Na2 {[%clk 0:03:00.9]} 13... Bd6 {[%clk 0:02:36.6]} 14. Bd2
{[%clk 0:03:01.5]} 14... Qc7 {[%clk 0:02:15.5]} 15. f4 {[%clk 0:03:02.9]} 15...
Be4 {[%clk 0:01:39.6]} 16. Nc3 {[%clk 0:02:50.6]} 16... h5 {[%clk 0:01:15.2]}
17. g5 {[%clk 0:02:51.1]} 17... Bxg2 {[%clk 0:01:15.4]} 18. Kxg2 {[%clk
0:02:51.4]} 18... Nd5 {[%clk 0:01:16.2]} 19. Rc1 {[%clk 0:02:41.5]} 19... N7b6
{[%clk 0:01:10.4]} 20. Nb5 {[%clk 0:02:37.9]} 20... Qe7 {[%clk 0:01:07.2]} 21.
Nxd6+ {[%clk 0:02:38.9]} 21... Qxd6 {[%clk 0:01:09.1]} 22. Be2 {[%clk
0:02:37.6]} 22... O-O-O {[%clk 0:01:03.8]} 23. a5 {[%clk 0:02:32.4]} 23... Nd7
{[%clk 0:00:56.8]} 24. a6 {[%clk 0:02:32.4]} 24... b6 {[%clk 0:00:53.2]} 25. Qa4
{[%clk 0:02:21.2]} 25... Nb8 {[%clk 0:00:52.5]} 26. Rc2 {[%clk 0:01:39.8]} 26...
h4 {[%clk 0:00:50.6]} 27. h3 {[%clk 0:01:37.7]} 27... f6 {[%clk 0:00:50.1]} 28.
Rfc1 {[%clk 0:01:38.5]} 28... Ne7 {[%clk 0:00:49.3]} 29. Bf3 {[%clk 0:01:37.2]}
29... Kd7 {[%clk 0:00:46.5]} 30. Bb4 {[%clk 0:01:33.1]} 30... Qc7 {[%clk
0:00:37.2]} 31. Bxe7 {[%clk 0:01:30.8]} 31... Kxe7 {[%clk 0:00:39.1]} 32. Bxc6
{[%clk 0:01:27.6]} 32... fxg5 {[%clk 0:00:39.5]} 33. Qb4+ {[%clk 0:00:42.1]}
33... Qd6 {[%clk 0:00:24.9]} 34. Qxd6+ {[%clk 0:00:43.3]} 34... Kxd6 {[%clk
0:00:25.5]} 35. Bb5 {[%clk 0:00:42]} 35... gxf4 {[%clk 0:00:13.1]} 36. exf4
{[%clk 0:00:43.9]} 36... Rhf8 {[%clk 0:00:08.1]} 37. Rc7 {[%clk 0:00:33.6]}
37... Rxf4 {[%clk 0:00:08.4]} 38. Rxa7 {[%clk 0:00:33.9]} 38... Rxd4 {[%clk
0:00:08]} 39. Rc2 {[%clk 0:00:31.5]} 39... Ke5 {[%clk 0:00:08.3]} 40. Rxg7
{[%clk 0:00:23]} 40... Rb4 {[%clk 0:00:09.3]} 41. Be2 {[%clk 0:00:20.3]} 41...
Kf6 {[%clk 0:00:09.2]} 42. Rh7 {[%clk 0:00:19]} 42... Ra4 {[%clk 0:00:08.6]} 43.
a7 {[%clk 0:00:19.6]} 43... Nd7 {[%clk 0:00:10]} 44. Rc7 {[%clk 0:00:18.7]}
44... Ne5 {[%clk 0:00:08.4]} 45. Rh6+ {[%clk 0:00:16.9]} 45... Kf5 {[%clk
0:00:08.5]} 46. Rh5+ {[%clk 0:00:16.2]} 46... Kf6 {[%clk 0:00:07.5]} 47. Rch7
{[%clk 0:00:15.2]} 47... Rg8+ {[%clk 0:00:08.3]} 48. Kf2 {[%clk 0:00:16.1]}
48... Nf7 {[%clk 0:00:08.7]} 49. Rxh4 {[%clk 0:00:16]} 49... Rxa7 {[%clk
0:00:08.7]} 50. Rf4+ {[%clk 0:00:16]} 50... Ke5 {[%clk 0:00:08.7]} 51. Rfxf7
{[%clk 0:00:16.6]} 51... Ra2 {[%clk 0:00:10]} 52. Rh5+ {[%clk 0:00:16.4]} 52...
Kd6 {[%clk 0:00:09.9]} 53. Rf3 {[%clk 0:00:14.2]} 53... Rxb2 {[%clk 0:00:09.8]}
54. Rd3+ {[%clk 0:00:15.9]} 54... Ke7 {[%clk 0:00:10.8]} 55. Rh7+ {[%clk
0:00:17.2]} 55... Kf6 {[%clk 0:00:11.8]} 56. h4 {[%clk 0:00:18.5]} 56... Rc8
{[%clk 0:00:09.6]} 57. h5 {[%clk 0:00:18.4]} 57... Rcc2 {[%clk 0:00:09]} 58. Re3
{[%clk 0:00:19.8]} 58... Rc5 {[%clk 0:00:09.3]} 59. Rh6+ {[%clk 0:00:20.8]}
59... Kg7 {[%clk 0:00:09.4]} 60. Rhxe6 {[%clk 0:00:21]} 60... Rf5+ {[%clk
0:00:10.4]} 61. Ke1 {[%clk 0:00:20.5]} 61... Rb1+ {[%clk 0:00:10.2]} 62. Kd2
{[%clk 0:00:21.5]} 62... b5 {[%clk 0:00:11.2]} 63. h6+ {[%clk 0:00:21.9]} 63...
Kh8 {[%clk 0:00:11.1]} 64. Re8+ {[%clk 0:00:23.2]} 64... Kh7 {[%clk 0:00:12.2]}
65. Bd3 {[%clk 0:00:24.6]} 65... Kxh6 {[%clk 0:00:11.4]} 66. Bxf5 {[%clk
0:00:25.1]} 1-0

[Event "*** Titled Tuesday Blitz"]
[Site "Chess.com"]
[Date "2018.01.02"]
[Round "7"]
[White "OparinGrigoriy"]
[Black "RoelandPruijssers"]
[Result "0-1"]
[WhiteElo "2715"]
[BlackElo "2559"]
[TimeControl "180+2"]
[EndTime "14:36:48 PST"]
[Termination "RoelandPruijssers won by resignation"]

1. e4 {[%clk 0:03:01.9]} 1... c5 {[%clk 0:03:00.6]} 2. Nf3 {[%clk 0:03:03.2]}
2... d6 {[%clk 0:03:00.3]} 3. d4 {[%clk 0:03:04.7]} 3... cxd4 {[%clk 0:03:02.2]}
4. Nxd4 {[%clk 0:03:06.6]} 4... Nf6 {[%clk 0:03:03.8]} 5. Nc3 {[%clk 0:03:08.1]}
5... Nc6 {[%clk 0:03:05.2]} 6. Bg5 {[%clk 0:03:08.6]} 6... Bd7 {[%clk
0:03:06.5]} 7. Qd2 {[%clk 0:03:09.5]} 7... Rc8 {[%clk 0:03:07.6]} 8. Nxc6 {[%clk
0:03:09.5]} 8... bxc6 {[%clk 0:03:05.9]} 9. Bc4 {[%clk 0:03:05.9]} 9... Qa5
{[%clk 0:02:54.5]} 10. O-O-O {[%clk 0:02:58]} 10... h6 {[%clk 0:02:40.1]} 11.
Be3 {[%clk 0:02:58.5]} 11... Qb4 {[%clk 0:02:27]} 12. Bb3 {[%clk 0:02:51.8]}
12... c5 {[%clk 0:02:17.8]} 13. a3 {[%clk 0:02:40.4]} 13... Qb7 {[%clk
0:02:14.6]} 14. e5 {[%clk 0:02:24.4]} 14... dxe5 {[%clk 0:01:47.3]} 15. Bc4
{[%clk 0:02:24.4]} 15... e6 {[%clk 0:01:42.8]} 16. Qe2 {[%clk 0:01:56.7]} 16...
Rb8 {[%clk 0:01:37.3]} 17. b3 {[%clk 0:01:57.8]} 17... Be7 {[%clk 0:01:35.6]}
18. f4 {[%clk 0:01:44]} 18... exf4 {[%clk 0:01:22]} 19. Bxf4 {[%clk 0:01:44.2]}
19... Rd8 {[%clk 0:01:20]} 20. g4 {[%clk 0:01:38.4]} 20... O-O {[%clk
0:01:17.1]} 21. g5 {[%clk 0:01:35.2]} 21... hxg5 {[%clk 0:00:49.3]} 22. Bxg5
{[%clk 0:01:36.3]} 22... Bc6 {[%clk 0:00:49.9]} 23. Rhf1 {[%clk 0:01:22.4]}
23... Rxd1+ {[%clk 0:00:47.8]} 24. Qxd1 {[%clk 0:01:24.3]} 24... Ne4 {[%clk
0:00:31.5]} 25. Nxe4 {[%clk 0:01:18.6]} 25... Bxe4 {[%clk 0:00:31.1]} 26. Bxe7
{[%clk 0:01:12]} 26... Qxe7 {[%clk 0:00:33]} 27. Qg4 {[%clk 0:01:13.1]} 27...
Bf5 {[%clk 0:00:29.4]} 28. Qg3 {[%clk 0:01:11.5]} 28... Qf6 {[%clk 0:00:29.6]}
29. Kb1 {[%clk 0:01:12.9]} 29... Rd8 {[%clk 0:00:27.7]} 30. Bd3 {[%clk
0:01:08.4]} 30... Rxd3 {[%clk 0:00:25.3]} 31. cxd3 {[%clk 0:01:07.5]} 31... Qc3
{[%clk 0:00:26.6]} 32. Qb8+ {[%clk 0:00:20]} 32... Kh7 {[%clk 0:00:27]} 33. Rxf5
{[%clk 0:00:14]} 33... Qxd3+ {[%clk 0:00:26.9]} 34. Kb2 {[%clk 0:00:15.4]} 34...
exf5 {[%clk 0:00:24.7]} 35. Qxa7 {[%clk 0:00:16.9]} 35... Qd4+ {[%clk
0:00:25.7]} 36. Kb1 {[%clk 0:00:17.6]} 36... f4 {[%clk 0:00:26.5]} 37. Qxf7
{[%clk 0:00:17.6]} 37... Qd3+ {[%clk 0:00:25.6]} 38. Kb2 {[%clk 0:00:17.9]}
38... Qd4+ {[%clk 0:00:21.2]} 39. Kb1 {[%clk 0:00:18.6]} 39... Qe4+ {[%clk
0:00:20]} 40. Kb2 {[%clk 0:00:19.4]} 40... f3 {[%clk 0:00:21.4]} 41. a4 {[%clk
0:00:19]} 41... Qe2+ {[%clk 0:00:22.5]} 42. Ka3 {[%clk 0:00:19.4]} 42... f2
{[%clk 0:00:24.1]} 43. Qf5+ {[%clk 0:00:20]} 43... Kh6 {[%clk 0:00:24.5]} 44.
Qf4+ {[%clk 0:00:21.5]} 44... g5 {[%clk 0:00:25.1]} 45. Qf8+ {[%clk 0:00:21.5]}
45... Kh5 {[%clk 0:00:26.6]} 46. h3 {[%clk 0:00:16]} 46... f1=Q {[%clk
0:00:21.2]} 47. Qh8+ {[%clk 0:00:17.1]} 47... Kg6 {[%clk 0:00:22.3]} 48. Qg8+
{[%clk 0:00:18.7]} 48... Kf5 {[%clk 0:00:23.6]} 49. Qf7+ {[%clk 0:00:19.7]}
49... Ke4 {[%clk 0:00:24.7]} 50. Qe7+ {[%clk 0:00:20]} 50... Kf4 {[%clk
0:00:24.8]} 51. Qf6+ {[%clk 0:00:20.4]} 51... Ke4 {[%clk 0:00:25.3]} 52. Qe6+
{[%clk 0:00:17.9]} 52... Kd3 {[%clk 0:00:24.7]} 53. Qd5+ {[%clk 0:00:15.2]}
53... Kc2 {[%clk 0:00:22.4]} 54. Qxc5+ {[%clk 0:00:16.2]} 54... Kb1 {[%clk
0:00:23.9]} 55. a5 {[%clk 0:00:13.2]} 55... Qb2+ {[%clk 0:00:21.4]} 56. Ka4
{[%clk 0:00:13.9]} 56... Qf4+ {[%clk 0:00:20.2]} 57. b4 {[%clk 0:00:13.5]} 57...
Qe4 {[%clk 0:00:17.7]} 58. a6 {[%clk 0:00:12.1]} 58... Qec2+ {[%clk 0:00:18.1]}
59. Kb5 {[%clk 0:00:12]} 59... Qxc5+ {[%clk 0:00:18]} 60. Kxc5 {[%clk
0:00:13.9]} 60... Qe5+ {[%clk 0:00:18.7]} 61. Kb6 {[%clk 0:00:15]} 61... Qd6+
{[%clk 0:00:19.4]} 62. Ka5 {[%clk 0:00:15.3]} 62... Kb2 {[%clk 0:00:19.8]} 63.
a7 {[%clk 0:00:16.2]} 63... Qc6 {[%clk 0:00:18.9]} 64. b5 {[%clk 0:00:16.2]}
64... Qb7 {[%clk 0:00:20]} 65. b6 {[%clk 0:00:17.8]} 65... Kc3 {[%clk
0:00:19.1]} 66. Kb5 {[%clk 0:00:19.3]} 66... Kd4 {[%clk 0:00:20.2]} 0-1

[Event "*** Titled Tuesday Blitz"]
[Site "Chess.com"]
[Date "2018.01.02"]
[Round "8"]
[White "oskariot"]
[Black "aquiles88"]
[Result "1-0"]
[WhiteElo "2376"]
[BlackElo "2069"]
[TimeControl "180+2"]
[EndTime "14:41:36 PST"]
[Termination "oskariot won by resignation"]

1. e4 {[%clk 0:03:01.9]} 1... g6 {[%clk 0:02:57.8]} 2. Nc3 {[%clk 0:03:03.8]}
2... Bg7 {[%clk 0:02:59.6]} 3. h4 {[%clk 0:03:04.7]} 3... h5 {[%clk 0:02:58.1]}
4. d4 {[%clk 0:03:05.7]} 4... c5 {[%clk 0:02:58.6]} 5. Be3 {[%clk 0:03:07.6]}
5... cxd4 {[%clk 0:02:47]} 6. Bxd4 {[%clk 0:03:09.5]} 6... Nf6 {[%clk
0:02:48.3]} 7. e5 {[%clk 0:03:08.8]} 7... Ng4 {[%clk 0:02:45.4]} 8. e6 {[%clk
0:03:09.8]} 8... Nf6 {[%clk 0:02:43.8]} 9. exf7+ {[%clk 0:03:10.8]} 9... Kxf7
{[%clk 0:02:44.5]} 10. Nh3 {[%clk 0:03:12.3]} 10... Nc6 {[%clk 0:02:41.7]} 11.
Ng5+ {[%clk 0:03:13.5]} 11... Kf8 {[%clk 0:02:35.6]} 12. Bc4 {[%clk 0:03:09.8]}
12... Nxd4 {[%clk 0:02:20.6]} 13. Qxd4 {[%clk 0:03:10.4]} 13... e6 {[%clk
0:02:15.4]} 14. Qd3 {[%clk 0:03:09.4]} 14... Rh6 {[%clk 0:02:00.6]} 15. O-O-O
{[%clk 0:03:09.4]} 15... a6 {[%clk 0:01:53.5]} 16. Nxe6+ {[%clk 0:03:09.7]} 1-0

[Event "*** Titled Tuesday Blitz"]
[Site "Chess.com"]
[Date "2018.01.02"]
[Round "8"]
[White "TastyFrenchFries"]
[Black "theblitzchamp"]
[Result "0-1"]
[WhiteElo "2320"]
[BlackElo "2458"]
[TimeControl "180+2"]
[EndTime "14:43:05 PST"]
[Termination "theblitzchamp won by resignation"]

1. e4 {[%clk 0:03:01.9]} 1... e5 {[%clk 0:02:59.5]} 2. Nf3 {[%clk 0:02:53.5]}
2... Nc6 {[%clk 0:03:00.3]} 3. Bb5 {[%clk 0:02:50.3]} 3... Nge7 {[%clk
0:03:01.3]} 4. d3 {[%clk 0:02:48.2]} 4... g6 {[%clk 0:03:02.2]} 5. c3 {[%clk
0:02:49.3]} 5... Bg7 {[%clk 0:03:03.4]} 6. Ba4 {[%clk 0:02:50.1]} 6... O-O
{[%clk 0:03:04.4]} 7. Qe2 {[%clk 0:02:51.1]} 7... d5 {[%clk 0:03:00.9]} 8. Bc2
{[%clk 0:02:51.2]} 8... h6 {[%clk 0:02:54.3]} 9. O-O {[%clk 0:02:50.8]} 9... f5
{[%clk 0:02:49]} 10. a4 {[%clk 0:02:42.6]} 10... Be6 {[%clk 0:02:40.9]} 11. Na3
{[%clk 0:02:38.2]} 11... dxe4 {[%clk 0:02:38.1]} 12. dxe4 {[%clk 0:02:38.5]}
12... f4 {[%clk 0:02:39.6]} 13. Rd1 {[%clk 0:02:34.5]} 13... Qe8 {[%clk
0:02:39.1]} 14. Ne1 {[%clk 0:02:35.3]} 14... Kh7 {[%clk 0:02:25]} 15. Nb5 {[%clk
0:02:29.3]} 15... Rc8 {[%clk 0:02:23.7]} 16. Nd3 {[%clk 0:02:26.9]} 16... a6
{[%clk 0:02:21.5]} 17. Nc5 {[%clk 0:02:22]} 17... f3 {[%clk 0:02:08.2]} 18. gxf3
{[%clk 0:02:21.1]} 18... Bh3 {[%clk 0:02:09]} 19. Na3 {[%clk 0:02:14]} 19... g5
{[%clk 0:02:10.4]} 20. f4 {[%clk 0:02:02.6]} 20... gxf4 {[%clk 0:02:07.1]} 21.
Qf3 {[%clk 0:02:01.9]} 21... Qg6+ {[%clk 0:02:00.1]} 22. Kh1 {[%clk 0:01:55.4]}
22... Bg4 {[%clk 0:02:01]} 23. Qg2 {[%clk 0:01:56.4]} 23... Qh5 {[%clk
0:01:57.1]} 0-1

[Event "*** Titled Tuesday Blitz"]
[Site "Chess.com"]
[Date "2018.01.02"]
[Round "8"]
[White "TenisMaster"]
[Black "GGuseinov"]
[Result "1/2-1/2"]
[WhiteElo "2710"]
[BlackElo "2722"]
[TimeControl "180+2"]
[EndTime "14:44:25 PST"]
[Termination "Game drawn by repetition"]

1. e4 {[%clk 0:03:01.9]} 1... c5 {[%clk 0:03:00.1]} 2. Nf3 {[%clk 0:03:02.4]}
2... g6 {[%clk 0:03:00.2]} 3. c3 {[%clk 0:02:57.5]} 3... d5 {[%clk 0:02:58.4]}
4. e5 {[%clk 0:02:57.9]} 4... Nc6 {[%clk 0:02:58.5]} 5. d4 {[%clk 0:02:58.3]}
5... Bg4 {[%clk 0:02:52.5]} 6. Nbd2 {[%clk 0:02:53.1]} 6... cxd4 {[%clk
0:02:50.8]} 7. cxd4 {[%clk 0:02:53.2]} 7... Qa5 {[%clk 0:02:50]} 8. Qb3 {[%clk
0:02:23.2]} 8... Qb4 {[%clk 0:02:47.4]} 9. Bb5 {[%clk 0:02:12.3]} 9... Qxb3
{[%clk 0:02:45.2]} 10. Nxb3 {[%clk 0:01:45.2]} 10... Bxf3 {[%clk 0:02:29.2]} 11.
gxf3 {[%clk 0:01:43.6]} 11... e6 {[%clk 0:02:24.9]} 12. Bxc6+ {[%clk 0:01:41.1]}
12... bxc6 {[%clk 0:02:24.8]} 13. Bd2 {[%clk 0:01:42.6]} 13... Ne7 {[%clk
0:02:20.4]} 14. Rc1 {[%clk 0:01:43]} 14... Rc8 {[%clk 0:02:15]} 15. Ke2 {[%clk
0:01:30.5]} 15... Nf5 {[%clk 0:02:12.9]} 16. Rc2 {[%clk 0:01:29.8]} 16... Kd7
{[%clk 0:02:08.3]} 17. Rhc1 {[%clk 0:01:30.5]} 17... Be7 {[%clk 0:02:06.1]} 18.
Kd3 {[%clk 0:01:30.7]} 18... Rc7 {[%clk 0:02:02.3]} 19. Na5 {[%clk 0:01:28.7]}
19... Rhc8 {[%clk 0:01:55.9]} 20. b4 {[%clk 0:01:27.8]} 20... h5 {[%clk
0:01:51.5]} 21. a3 {[%clk 0:01:28.2]} 21... Bf8 {[%clk 0:01:47.9]} 22. Be3
{[%clk 0:01:24.2]} 22... Be7 {[%clk 0:01:48.1]} 23. Ke2 {[%clk 0:01:13.4]} 23...
Nh4 {[%clk 0:01:42.1]} 24. Bf4 {[%clk 0:01:10.6]} 24... Nf5 {[%clk 0:01:41.1]}
25. Be3 {[%clk 0:01:11.5]} 25... Nh4 {[%clk 0:01:42.1]} 26. Bf4 {[%clk
0:01:12.1]} 26... Nf5 {[%clk 0:01:43]} 27. Be3 {[%clk 0:01:13]} 27... Nh4 {[%clk
0:01:40.5]} 1/2-1/2

[Event "*** Titled Tuesday Blitz"]
[Site "Chess.com"]
[Date "2018.01.02"]
[Round "8"]
[White "Keaton87"]
[Black "Jbd735"]
[Result "1-0"]
[WhiteElo "2513"]
[BlackElo "2289"]
[TimeControl "180+2"]
[EndTime "14:44:43 PST"]
[Termination "Keaton87 won by resignation"]

1. e4 {[%clk 0:03:01.9]} 1... e5 {[%clk 0:03:00.2]} 2. Nf3 {[%clk 0:03:02.7]}
2... Nc6 {[%clk 0:03:00.7]} 3. Bb5 {[%clk 0:03:04.2]} 3... a6 {[%clk 0:03:01.2]}
4. Ba4 {[%clk 0:03:05]} 4... Nf6 {[%clk 0:03:02.3]} 5. d4 {[%clk 0:03:04.8]}
5... exd4 {[%clk 0:02:45.4]} 6. O-O {[%clk 0:03:05.6]} 6... b5 {[%clk
0:02:00.3]} 7. Bb3 {[%clk 0:03:05.8]} 7... Nxe4 {[%clk 0:01:31.2]} 8. Re1 {[%clk
0:02:59.1]} 8... d5 {[%clk 0:01:29.4]} 9. Ng5 {[%clk 0:02:58.9]} 9... Bf5 {[%clk
0:01:19.2]} 10. f3 {[%clk 0:02:54.5]} 10... Bb4 {[%clk 0:00:56.6]} 11. fxe4
{[%clk 0:02:34.5]} 11... Bxe1 {[%clk 0:00:57]} 12. Qxe1 {[%clk 0:02:32.1]} 12...
Bxe4 {[%clk 0:00:39.6]} 13. Nxe4 {[%clk 0:02:29.2]} 13... dxe4 {[%clk
0:00:40.5]} 14. Qxe4+ {[%clk 0:02:29.9]} 14... Ne7 {[%clk 0:00:41]} 15. Bg5
{[%clk 0:02:28.2]} 15... f6 {[%clk 0:00:22.9]} 16. Bf4 {[%clk 0:02:28.9]} 16...
c5 {[%clk 0:00:13]} 17. Be6 {[%clk 0:02:25.7]} 17... Ra7 {[%clk 0:00:11.5]} 18.
Nd2 {[%clk 0:02:26.4]} 18... Qb6 {[%clk 0:00:06.3]} 19. Re1 {[%clk 0:02:26.3]}
19... Kd8 {[%clk 0:00:06.1]} 20. c3 {[%clk 0:02:16.4]} 20... Qc6 {[%clk
0:00:04.9]} 21. Qd3 {[%clk 0:02:10.8]} 21... Ke8 {[%clk 0:00:03.2]} 22. cxd4
{[%clk 0:02:11.1]} 22... c4 {[%clk 0:00:04.1]} 23. Qe3 {[%clk 0:02:07.2]} 23...
Kf8 {[%clk 0:00:04.5]} 24. d5 {[%clk 0:02:07.7]} 24... Qb7 {[%clk 0:00:04.1]}
1-0

[Event "*** Titled Tuesday Blitz"]
[Site "Chess.com"]
[Date "2018.01.02"]
[Round "8"]
[White "Frolik67"]
[Black "arna"]
[Result "1-0"]
[WhiteElo "2425"]
[BlackElo "2096"]
[TimeControl "180+2"]
[EndTime "14:44:54 PST"]
[Termination "Frolik67 won by resignation"]

1. e4 {[%clk 0:03:01.9]} 1... c5 {[%clk 0:03:00.1]} 2. Nf3 {[%clk 0:03:02.5]}
2... Nc6 {[%clk 0:03:01.2]} 3. Bb5 {[%clk 0:03:02.7]} 3... g6 {[%clk 0:03:01.7]}
4. O-O {[%clk 0:03:02.5]} 4... Bg7 {[%clk 0:03:01.7]} 5. Re1 {[%clk 0:03:02.2]}
5... Nf6 {[%clk 0:03:02.5]} 6. Nc3 {[%clk 0:02:59.7]} 6... O-O {[%clk
0:02:38.2]} 7. d3 {[%clk 0:02:57.7]} 7... Ne8 {[%clk 0:02:23.3]} 8. Be3 {[%clk
0:02:49.7]} 8... Nd4 {[%clk 0:02:13.3]} 9. Bxd4 {[%clk 0:02:43.9]} 9... cxd4
{[%clk 0:02:10.7]} 10. Ne2 {[%clk 0:02:43.8]} 10... e5 {[%clk 0:01:57.7]} 11. c3
{[%clk 0:02:43.3]} 11... dxc3 {[%clk 0:01:49.7]} 12. Nxc3 {[%clk 0:02:44.1]}
12... Nc7 {[%clk 0:01:47.6]} 13. Rc1 {[%clk 0:02:43]} 13... d6 {[%clk
0:01:33.7]} 14. Bc4 {[%clk 0:02:41.3]} 14... Be6 {[%clk 0:01:33.7]} 15. Qb3
{[%clk 0:02:41.4]} 15... b6 {[%clk 0:01:26.3]} 16. Nd5 {[%clk 0:02:39.2]} 16...
Nxd5 {[%clk 0:01:26.5]} 17. Bxd5 {[%clk 0:02:41.1]} 17... Bxd5 {[%clk
0:01:26.5]} 18. Qxd5 {[%clk 0:02:43]} 18... Rc8 {[%clk 0:01:07.5]} 19. Nd2
{[%clk 0:02:40]} 19... Bh6 {[%clk 0:00:36.5]} 20. Rxc8 {[%clk 0:02:37.8]} 20...
Qxc8 {[%clk 0:00:37.6]} 21. Nc4 {[%clk 0:02:38.9]} 21... Rd8 {[%clk 0:00:27.4]}
22. h3 {[%clk 0:02:36.9]} 22... Qc7 {[%clk 0:00:08.7]} 23. Re2 {[%clk
0:02:37.2]} 23... Bf8 {[%clk 0:00:07.8]} 24. Rc2 {[%clk 0:02:37.4]} 24... Qd7
{[%clk 0:00:07.6]} 25. Ne3 {[%clk 0:02:35.9]} 25... Rc8 {[%clk 0:00:07.6]} 26.
Qb3 {[%clk 0:02:32]} 26... Rxc2 {[%clk 0:00:06.2]} 27. Qxc2 {[%clk 0:02:33.9]}
27... h5 {[%clk 0:00:06.3]} 28. Nd5 {[%clk 0:02:34.4]} 28... Be7 {[%clk
0:00:07.6]} 29. Qc8+ {[%clk 0:02:28.9]} 29... Qd8 {[%clk 0:00:06.5]} 30. Nxe7+
{[%clk 0:02:27.8]} 1-0